fUST/lending_fUST_20250630
["ID","MTS","AMOUNT","RATE_DAILY","PERIOD"]
[368582672,1751215841597,-460.0,0.00018391,2]
[368582673,1751215841606,-467.3267806,0.00018391,2]
[368582674,1751215841616,-468.80563431,0.00018391,2]
[368582675,1751215841626,-460.0,0.00018391,2]
[368582676,1751215841635,-915.56,0.00018391,2]
[368582677,1751215841645,-460.0,0.00018391,2]
[368582678,1751215841654,-460.0,0.00018391,2]
[368582679,1751215841663,-460.0,0.00018391,2]
[368582680,1751215841673,-465.1755697,0.00018391,2]
[368582681,1751215841683,-468.46302423,0.00018391,2]
[368582682,1751215841692,-944.44,0.00018391,2]
[368582683,1751215841702,-460.0,0.00018391,2]
[368582684,1751215841712,-2638.73,0.00018391,2]
[368582685,1751215841721,-460.0,0.00018391,2]
[368582686,1751215841731,-460.0,0.00018391,2]
[368582687,1751215841741,-500.0,0.00018391,2]
[368582688,1751215841752,-500.0,0.00018391,2]
[368582689,1751215841761,-460.0,0.00018391,2]
[368582690,1751215841775,-466.03578202,0.00018391,2]
[368582691,1751215841784,-763.42,0.00018391,2]
[368582692,1751215841794,-158.21075791,0.00018391,2]
[368582693,1751215841803,-1286.76,0.00018391,2]
[368582694,1751215841814,-462.67557785,0.00018391,2]
[368582695,1751215841823,-460.0,0.00018391,2]
[368582696,1751215841833,-460.0,0.00018391,2]
[368582697,1751215841844,-460.0,0.00018391,2]
[368582698,1751215841854,-460.0,0.00018391,2]
[368582699,1751215841863,-460.0,0.00018391,2]
[368582700,1751215841873,-867.17,0.00018391,2]
[368582701,1751215841882,-460.0,0.00018391,2]
[368582702,1751215841892,-500.0,0.00018392,2]
[368582703,1751215841901,-460.0,0.00018393,2]
[368582704,1751215841910,-460.0,0.00018393,2]
[368582705,1751215841920,-460.0,0.00018393,2]
[368582706,1751215841929,-460.0,0.00018393,2]
[368582707,1751215841939,-460.0,0.00018393,2]
[368582708,1751215841949,-460.0,0.00018393,2]
[368582709,1751215841958,-460.0,0.00018393,2]
[368582710,1751215841968,-460.0,0.00018393,2]
[368582711,1751215841977,-248.99942428,0.00018393,2]
[368582712,1751215841986,-460.0,0.00018393,2]
[368582713,1751215841996,-460.0,0.00018393,2]
[368582714,1751215842006,-460.0,0.00018393,2]
[368582715,1751215842015,-460.0,0.00018393,2]
[368582716,1751215842024,-460.0,0.00018393,2]
[368582717,1751215842034,-460.0,0.00018393,2]
[368582718,1751215842043,-460.0,0.00018393,2]
[368582719,1751215842052,-460.0,0.00018393,2]
[368582720,1751215842062,-460.0,0.00018393,2]
[368582721,1751215842071,-460.0,0.00018393,2]
[368582722,1751215842080,-447.75541031,0.00018393,2]
[368582723,1751215842090,-460.0,0.00018393,2]
[368582724,1751215842099,-460.0,0.00018393,2]
[368582725,1751215842108,-460.0,0.00018393,2]
[368582726,1751215842118,-460.0,0.00018393,2]
[368582727,1751215842127,-460.0,0.00018393,2]
[368582728,1751215842136,-460.37121348,0.00018393,7]
[368582729,1751215842146,-460.0,0.00018393,2]
[368582730,1751215842155,-460.0,0.00018393,2]
[368582731,1751215842166,-460.0,0.00018393,2]
[368582732,1751215842176,-460.0,0.00018393,2]
[368582733,1751215842185,-460.0,0.00018393,2]
[368582734,1751215842194,-460.0,0.00018393,2]
[368582735,1751215842204,-460.0,0.00018393,2]
[368582736,1751215842214,-460.0,0.00018393,2]
[368582737,1751215842223,-460.0,0.00018393,2]
[368582738,1751215842234,-460.0,0.00018393,2]
[368582739,1751215842243,-500.0,0.00018393,2]
[368582740,1751215842253,-460.0,0.00018393,2]
[368582741,1751215842262,-460.0,0.00018393,2]
[368582742,1751215842272,-460.0,0.00018393,2]
[368582743,1751215842282,-460.0,0.00018393,2]
[368582744,1751215842291,-460.0,0.00018393,2]
[368582745,1751215842301,-460.0,0.00018393,2]
[368582746,1751215842310,-460.0,0.00018393,2]
[368582747,1751215842319,-460.37459326,0.00018393,2]
[368582748,1751215842330,-460.0,0.00018393,2]
[368582749,1751215842340,-460.0,0.00018393,2]
[368582750,1751215842349,-460.0,0.00018393,2]
[368582751,1751215842359,-460.0,0.00018393,2]
[368582752,1751215842368,-460.0,0.00018393,2]
[368582753,1751215842378,-460.0,0.00018393,2]
[368582754,1751215842387,-460.0,0.00018393,2]
[368582755,1751215842397,-460.0,0.00018393,2]
[368582756,1751215842406,-463.79292379,0.00018393,2]
[368582757,1751215842416,-460.0,0.00018393,2]
[368582758,1751215842425,-460.0,0.00018393,2]
[368582759,1751215842435,-460.0,0.00018393,2]
[368582760,1751215842444,-460.0,0.00018393,2]
[368582761,1751215842454,-510.50568646,0.00018393,2]
[368582762,1751215842463,-460.0,0.00018393,2]
[368582763,1751215842473,-500.0,0.00018393,2]
[368582764,1751215842485,-1132.72,0.00018393,2]
[368582765,1751215842494,-460.0,0.00018393,2]
[368582766,1751215842504,-460.0,0.00018393,2]
[368582767,1751215842514,-460.0,0.00018393,2]
[368582768,1751215842523,-460.0,0.00018393,2]
[368582769,1751215842533,-474.69022223,0.00018393,2]
[368582770,1751215842543,-460.0,0.00018393,2]
[368582771,1751215842553,-460.0,0.00018393,2]
[368582772,1751215842562,-460.0,0.00018393,2]
[368582773,1751215842574,-460.0,0.00018393,2]
[368582774,1751215842583,-460.0,0.00018393,2]
[368582775,1751215842593,-460.0,0.00018393,2]
[368582776,1751215842604,-460.0,0.00018393,2]
[368582777,1751215842613,-460.0,0.00018393,2]
[368582778,1751215842622,-460.0,0.00018393,2]
[368582779,1751215842632,-460.0,0.00018393,2]
[368582780,1751215842642,-460.0,0.00018393,2]
[368582781,1751215842651,-460.0,0.00018393,2]
[368582782,1751215842661,-460.0,0.00018393,2]
[368582783,1751215842671,-460.0,0.00018393,2]
[368582784,1751215842681,-460.0,0.00018393,2]
[368582785,1751215842691,-460.0,0.00018393,2]
[368582786,1751215842701,-460.0,0.00018393,2]
[368582787,1751215842710,-460.0,0.00018393,2]
[368582788,1751215842721,-500.0,0.00018394,2]
[368582789,1751215842731,-500.0,0.00018394,2]
[368582790,1751215842741,-500.0,0.00018394,2]
[368582791,1751215842751,-500.0,0.00018395,2]
[368582792,1751215842761,-500.0,0.00018395,2]
[368582793,1751215842774,-460.0,0.00018396,2]
[368582794,1751215842784,-460.0,0.00018396,2]
[368582796,1751215842794,-460.0,0.00018396,2]
[368582797,1751215842804,-460.0,0.00018396,2]
[368582798,1751215842815,-460.0,0.00018396,2]
[368582799,1751215842825,-460.0,0.00018396,2]
[368582800,1751215842834,-460.0,0.00018396,2]
[368582801,1751215842846,-460.0,0.00018396,2]
[368582802,1751215842855,-428.30180076,0.00018396,2]
[368582803,1751215842866,-460.0,0.00018396,2]
[368582804,1751215842875,-460.0,0.00018396,2]
[368582805,1751215842885,-460.0,0.00018396,2]
[368582806,1751215842894,-298.27260382,0.00018396,2]
[368582807,1751215842904,-460.0,0.00018396,2]
[368582808,1751215842917,-460.0,0.00018396,2]
[368582809,1751215842929,-500.0,0.00018409,2]
[368582810,1751215842943,-500.0,0.00018409,2]
[368582811,1751215842955,-500.0,0.00018433,2]
[368582812,1751215842968,-207.4,0.00018434,2]
[368582813,1751215842980,-500.0,0.00018434,2]
[368582814,1751215842991,-500.0,0.00018434,2]
[368582815,1751215843001,-500.0,0.00018434,2]
[368582816,1751215843015,-500.0,0.00018434,2]
[368582817,1751215843026,-500.0,0.00018434,2]
[368582818,1751215843038,-500.0,0.00018434,2]
[368582819,1751215843050,-500.0,0.00018434,2]
[368582820,1751215843061,-500.0,0.00018434,2]
[368582821,1751215843073,-500.0,0.00018434,2]
[368582822,1751215843085,-500.0,0.00018434,2]
[368582823,1751215843096,-500.0,0.00018434,2]
[368582824,1751215843108,-500.0,0.00018434,2]
[368582825,1751215843120,-500.0,0.00018434,2]
[368582826,1751215843133,-500.0,0.00018434,2]
[368582827,1751215843145,-500.0,0.00018434,2]
[368582828,1751215843155,-500.0,0.00018434,2]
[368582829,1751215843167,-500.0,0.00018434,2]
[368582830,1751215843180,-460.0,0.00018646,2]
[368582831,1751215843191,-460.0,0.00018661,2]
[368582832,1751215843202,-460.0,0.00018661,2]
[368582833,1751215843215,-460.0,0.00018661,2]
[368582834,1751215843227,-460.0,0.00018661,2]
[368582835,1751215843239,-1691.12,0.00018661,2]
[368582836,1751215843250,-460.0,0.00018661,2]
[368582837,1751215843262,-460.0,0.00018661,2]
[368582838,1751215843272,-2518.13,0.00018661,2]
[368582839,1751215843282,-460.0,0.00018662,2]
[368582840,1751215843293,-460.0,0.00018662,2]
[368582841,1751215843304,-460.0,0.00018662,2]
[368582842,1751215843315,-460.0,0.00018662,2]
[368582843,1751215843327,-460.0,0.00018662,2]
[368582844,1751215843339,-460.0,0.00018662,2]
[368582845,1751215843350,-2466.97,0.00018662,2]
[368582846,1751215843362,-460.0,0.00018662,2]
[368582847,1751215843373,-460.0,0.00018662,2]
[368582848,1751215843386,-516.73,0.00018662,2]
[368582849,1751215843399,-460.0,0.00018662,2]
[368582850,1751215843411,-460.0,0.00018662,2]
[368582851,1751215843423,-460.0,0.00018662,2]
[368582852,1751215843436,-460.0,0.00018662,2]
[368582853,1751215843446,-460.0,0.00018662,2]
[368582854,1751215843456,-2711.1,0.00018662,2]
[368582855,1751215843466,-1511.48086252,0.00018662,2]
[368582860,1751215843657,-925.86913748,0.00018662,2]
[368582861,1751215843668,-550.98,0.00018662,2]
[368582862,1751215843679,-460.0,0.00018662,2]
[368582864,1751215843690,-315.69895092,0.00018662,2]
[368582865,1751215843709,-2317.45104908,0.00018662,2]
[368582866,1751215843719,-460.0,0.00018662,2]
[368582867,1751215843730,-460.0,0.00018662,2]
[368582868,1751215843740,-665.98348097,0.00018662,2]
[368582869,1751215843754,-163.52651903,0.00018662,2]
[368582870,1751215843766,-383.94751407,0.00018662,2]
[368582871,1751215843779,-389.82,0.00018662,2]
[368582872,1751215843790,-460.0,0.00018662,2]
[368582873,1751215843801,-460.0,0.00018662,2]
[368582874,1751215843812,-1443.48,0.00018662,2]
[368582875,1751215843823,-460.0,0.00018662,2]
[368582876,1751215843834,-460.0,0.00018662,2]
[368582877,1751215843846,-460.0,0.00018662,2]
[368582879,1751215843857,-460.0,0.00018662,2]
[368582880,1751215843868,-460.0,0.00018662,2]
[368582881,1751215843879,-460.0,0.00018662,2]
[368582882,1751215843889,-1255.93,0.00018662,2]
[368582883,1751215843900,-460.0,0.00018662,2]
[368582884,1751215843912,-460.0,0.00018662,2]
[368582885,1751215843923,-460.0,0.00018662,2]
[368582886,1751215843934,-691.24,0.00018662,2]
[368582887,1751215843944,-460.0,0.00018662,2]
[368582888,1751215843954,-460.0,0.00018662,2]
[368582889,1751215843965,-460.0,0.00018662,2]
[368582890,1751215843975,-580.78,0.00018662,2]
[368582891,1751215843985,-327.28388297,0.00018663,2]
[368582894,1751215843999,-132.71611703,0.00018663,2]
[368582896,1751215844009,-278.77259246,0.00018663,2]
[368582898,1751215844023,-219.7230493,0.00018663,2]
[368582900,1751215844034,-334.51147419,0.00018663,2]
[368582903,1751215844164,-460.0,0.00018646,2]
[368582904,1751215844175,-460.0,0.00018662,2]
[368582905,1751215844186,-125.48852581,0.00018663,2]
[368582906,1751215844198,-889.24,0.00018663,2]
[368582907,1751215844209,-460.0,0.00018663,2]
[368582908,1751215844220,-460.0,0.00018663,2]
[368582909,1751215844230,-460.0,0.00018663,2]
[368582910,1751215844242,-460.0,0.00018663,2]
[368582911,1751215844251,-585.05,0.00018663,2]
[368582912,1751215844260,-460.0,0.00018663,2]
[368582913,1751215844270,-460.0,0.00018663,2]
[368582914,1751215844279,-3178.03,0.00018663,2]
[368582915,1751215844288,-460.0,0.00018663,2]
[368582916,1751215844298,-640.96,0.00018663,2]
[368582917,1751215844308,-1063.57,0.00018663,2]
[368582918,1751215844317,-460.0,0.00018663,2]
[368582919,1751215844326,-460.0,0.00018663,2]
[368582920,1751215844336,-703.44,0.00018663,2]
[368582921,1751215844346,-1251.33,0.00018663,2]
[368582922,1751215844356,-460.0,0.00018664,2]
[368582923,1751215844366,-479.79176108,0.00018664,2]
[368582924,1751215844376,-460.0,0.00018664,2]
[368582925,1751215844386,-460.0,0.00018664,2]
[368582926,1751215844396,-460.0,0.00018664,2]
[368582927,1751215844405,-460.0,0.00018664,2]
[368582928,1751215844415,-460.0,0.00018664,2]
[368582929,1751215844424,-524.45,0.00018664,2]
[368582930,1751215844434,-546.38,0.00018664,2]
[368582931,1751215844444,-460.0,0.00018664,2]
[368582932,1751215844453,-460.0,0.00018664,2]
[368582933,1751215844463,-460.0,0.00018664,2]
[368582934,1751215844472,-460.0,0.00018664,2]
[368582935,1751215844481,-460.0,0.00018664,2]
[368582936,1751215844491,-460.0,0.00018664,2]
[368582937,1751215844500,-4014.48,0.00018664,2]
[368582938,1751215844510,-460.0,0.00018664,2]
[368582939,1751215844520,-1201.4,0.00018664,2]
[368582940,1751215844530,-460.0,0.00018664,2]
[368582941,1751215844539,-460.0,0.00018664,2]
[368582942,1751215844549,-460.0,0.00018664,2]
[368582943,1751215844558,-460.0,0.00018664,2]
[368582944,1751215844567,-460.0,0.00018664,2]
[368582945,1751215844577,-437.58396113,0.00018665,2]
[368582946,1751215844587,-460.0,0.00018665,2]
[368582947,1751215844596,-460.0,0.00018665,2]
[368582948,1751215844831,-558.82,0.00018665,2]
[368582949,1751215844849,-460.0,0.00018665,2]
[368582950,1751215844862,-460.0,0.00018665,2]
[368582951,1751215844872,-460.0,0.00018665,2]
[368582952,1751215844882,-460.0,0.00018665,2]
[368582953,1751215844891,-915.56,0.00018665,2]
[368582954,1751215844901,-460.0,0.00018665,2]
[368582955,1751215844910,-460.0,0.00018665,2]
[368582956,1751215844920,-944.44,0.00018665,2]
[368582957,1751215844929,-460.0,0.00018665,2]
[368582958,1751215844938,-2638.73,0.00018665,2]
[368582959,1751215844948,-460.0,0.00018665,2]
[368582960,1751215844957,-500.0,0.00018665,2]
[368582961,1751215844967,-500.0,0.00018665,2]
[368582962,1751215844977,-763.42,0.00018665,2]
[368582963,1751215844987,-1286.76,0.00018665,2]
[368582964,1751215844996,-867.17,0.00018665,2]
[368582965,1751215845005,-460.0,0.00018667,2]
[368582966,1751215845014,-460.0,0.00018667,2]
[368582967,1751215845023,-460.0,0.00018667,2]
[368582968,1751215845033,-550.8,0.00018667,2]
[368582969,1751215845042,-1132.72,0.00018667,2]
[368582970,1751215845051,-460.0,0.00018667,2]
[368582971,1751215845060,-500.0,0.00018668,2]
[368582972,1751215845069,-500.0,0.00018669,2]
[368582973,1751215845080,-500.0,0.00018683,2]
[368582974,1751215845089,-2879.56707988,0.00018753,2]
[368582975,1751215845098,-4144.83784474,0.000189,2]
[368582976,1751215845108,-500.0,0.00018903,2]
[368582977,1751215845117,-500.0,0.00018917,2]
[368582978,1751215845126,-500.0,0.00018917,2]
[368582979,1751215845136,-500.0,0.00018917,2]
[368582980,1751215845145,-460.0,0.0001892,2]
[368582981,1751215845155,-460.0,0.0001892,2]
[368582982,1751215845164,-1000.0,0.00018921,2]
[368582983,1751215845173,-1000.0,0.00018921,2]
[368582984,1751215845183,-1000.0,0.00018921,2]
[368582985,1751215845192,-1000.0,0.00018921,2]
[368582986,1751215845201,-1000.0,0.00018921,2]
[368582987,1751215845210,-500.0,0.00018934,2]
[368582988,1751215845219,-211.78202519,0.00018934,2]
[368582989,1751215845228,-460.0,0.00018935,2]
[368582990,1751215845238,-460.0,0.00018935,2]
[368582991,1751215845247,-1691.12,0.00018935,2]
[368582992,1751215845257,-460.0,0.00018935,2]
[368582993,1751215845266,-460.0,0.00018935,2]
[368582994,1751215845275,-2518.13,0.00018935,2]
[368582995,1751215845285,-460.0,0.00018936,2]
[368582996,1751215845294,-460.0,0.00018936,2]
[368582997,1751215845303,-460.0,0.00018936,2]
[368582998,1751215845313,-460.0,0.00018936,2]
[368582999,1751215845322,-2466.97,0.00018936,2]
[368583000,1751215845331,-460.0,0.00018936,2]
[368583001,1751215845340,-460.0,0.00018936,2]
[368583002,1751215845349,-516.73,0.00018936,2]
[368583003,1751215845359,-460.0,0.00018936,2]
[368583004,1751215845368,-460.0,0.00018936,2]
[368583005,1751215845378,-460.0,0.00018936,2]
[368583006,1751215845387,-460.0,0.00018936,2]
[368583007,1751215845397,-2711.1,0.00018936,2]
[368583008,1751215845406,-2437.35,0.00018936,2]
[368583009,1751215845415,-550.98,0.00018936,2]
[368583010,1751215845424,-460.0,0.00018936,2]
[368583011,1751215845433,-2633.15,0.00018936,2]
[368583012,1751215845443,-460.0,0.00018936,2]
[368583013,1751215845452,-460.0,0.00018936,2]
[368583014,1751215845461,-829.51,0.00018936,2]
[368583015,1751215845470,-460.0,0.00018936,2]
[368583016,1751215845479,-1443.48,0.00018936,2]
[368583017,1751215845488,-460.0,0.00018936,2]
[368583018,1751215845498,-460.0,0.00018936,2]
[368583019,1751215845508,-460.0,0.00018936,2]
[368583020,1751215845517,-460.0,0.00018936,2]
[368583021,1751215845526,-460.0,0.00018936,2]
[368583022,1751215845536,-460.0,0.00018936,2]
[368583023,1751215845545,-1255.93,0.00018936,2]
[368583024,1751215845554,-460.0,0.00018936,2]
[368583025,1751215845563,-460.0,0.00018936,2]
[368583026,1751215845572,-460.0,0.00018936,2]
[368583027,1751215845582,-691.24,0.00018936,2]
[368583028,1751215845591,-460.0,0.00018936,2]
[368583029,1751215845600,-460.0,0.00018936,2]
[368583030,1751215845610,-460.0,0.00018936,2]
[368583031,1751215845619,-580.78,0.00018936,2]
[368583032,1751215845628,-460.0,0.00018936,2]
[368583033,1751215845638,-460.0,0.00018937,2]
[368583034,1751215845647,-889.24,0.00018937,2]
[368583035,1751215845657,-460.0,0.00018937,2]
[368583036,1751215845666,-460.0,0.00018937,2]
[368583037,1751215845675,-460.0,0.00018937,2]
[368583039,1751215845685,-460.0,0.00018937,2]
[368583040,1751215845694,-585.05,0.00018937,2]
[368583041,1751215845704,-460.0,0.00018937,2]
[368583042,1751215845714,-460.0,0.00018937,2]
[368583043,1751215845723,-3178.03,0.00018937,2]
[368583044,1751215845732,-460.0,0.00018937,2]
[368583046,1751215845742,-640.96,0.00018937,2]
[368583047,1751215845751,-1063.57,0.00018937,2]
[368583048,1751215845760,-460.0,0.00018937,2]
[368583049,1751215845772,-460.0,0.00018937,2]
[368583050,1751215845783,-703.44,0.00018937,2]
[368583051,1751215845792,-1251.33,0.00018937,2]
[368583052,1751215845802,-460.0,0.00018938,2]
[368583053,1751215845811,-460.0,0.00018938,2]
[368583054,1751215845821,-460.0,0.00018938,2]
[368583055,1751215845831,-460.0,0.00018938,2]
[368583056,1751215845842,-524.45,0.00018938,2]
[368583057,1751215845851,-546.38,0.00018938,2]
[368583058,1751215845861,-460.0,0.00018938,2]
[368583059,1751215845871,-255.6,0.00018938,2]
[368583060,1751215845880,-460.0,0.00018938,2]
[368583061,1751215845890,-460.0,0.00018938,2]
[368583062,1751215845899,-460.0,0.00018938,2]
[368583063,1751215845909,-460.0,0.00018938,2]
[368583064,1751215845918,-4014.48,0.00018938,2]
[368583065,1751215845928,-460.0,0.00018938,2]
[368583066,1751215845938,-1201.4,0.00018938,2]
[368583067,1751215845947,-399.63,0.00018938,2]
[368583068,1751215845957,-460.0,0.00018938,2]
[368583069,1751215845966,-460.0,0.00018938,2]
[368583070,1751215845977,-460.0,0.00018938,2]
[368583071,1751215845986,-460.0,0.00018939,2]
[368583072,1751215845995,-558.82,0.00018939,2]
[368583073,1751215846005,-460.0,0.00018939,2]
[368583074,1751215846015,-460.0,0.00018939,2]
[368583075,1751215846024,-460.0,0.00018939,2]
[368583076,1751215846033,-460.0,0.00018939,2]
[368583077,1751215846042,-915.56,0.00018939,2]
[368583078,1751215846051,-460.0,0.00018939,2]
[368583079,1751215846061,-460.0,0.00018939,2]
[368583080,1751215846070,-944.44,0.00018939,2]
[368583081,1751215846080,-2638.73,0.00018939,2]
[368583082,1751215846090,-460.0,0.00018939,2]
[368583083,1751215846100,-500.0,0.00018939,2]
[368583084,1751215846109,-500.0,0.00018939,2]
[368583085,1751215846119,-763.42,0.00018939,2]
[368583086,1751215846129,-1286.76,0.00018939,2]
[368583087,1751215846137,-867.17,0.00018939,2]
[368583088,1751215846147,-460.0,0.00018941,2]
[368583089,1751215846156,-460.0,0.00018941,2]
[368583090,1751215846166,-460.0,0.00018941,2]
[368583091,1751215846176,-1132.72,0.00018941,2]
[368583092,1751215846186,-460.0,0.00018941,2]
[368583093,1751215846196,-500.0,0.00018942,2]
[368583094,1751215846206,-567.18,0.00018943,2]
[368583095,1751215846215,-461.01939852,0.00018954,2]
[368583096,1751215846225,-500.0,0.00018981,2]
[368583097,1751215846235,-195.03929553,0.00019057,2]
[368583098,1751215846244,-4144.83784459,0.00019107,2]
[368583099,1751215846254,-267.68267573,0.00019115,2]
[368583100,1751215846263,-598.624722,0.00019178,2]
[368583101,1751215846273,-460.0,0.00019194,2]
[368583102,1751215846282,-460.0,0.00019194,2]
[368583103,1751215846291,-526.03652779,0.00019197,2]
[368583104,1751215846300,-460.0,0.00019209,2]
[368583105,1751215846309,-460.0,0.00019209,2]
[368583106,1751215846319,-1691.12,0.00019209,2]
[368583107,1751215846330,-460.0,0.00019209,2]
[368583108,1751215846340,-460.0,0.00019209,2]
[368583109,1751215846350,-2518.13,0.00019209,2]
[368583110,1751215846359,-460.0,0.0001921,2]
[368583111,1751215846368,-460.0,0.0001921,2]
[368583112,1751215846378,-460.0,0.0001921,2]
[368583113,1751215846387,-460.0,0.0001921,2]
[368583114,1751215846397,-2466.97,0.0001921,2]
[368583115,1751215846407,-516.73,0.0001921,2]
[368583116,1751215846416,-460.0,0.0001921,2]
[368583117,1751215846425,-460.0,0.0001921,2]
[368583118,1751215846434,-460.0,0.0001921,2]
[368583119,1751215846443,-2711.1,0.0001921,2]
[368583120,1751215846453,-2437.35,0.0001921,2]
[368583122,1751215846462,-550.98,0.0001921,2]
[368583123,1751215846471,-460.0,0.0001921,2]
[368583124,1751215846481,-2633.15,0.0001921,2]
[368583125,1751215846490,-460.0,0.0001921,2]
[368583126,1751215846499,-460.0,0.0001921,2]
[368583127,1751215846509,-829.51,0.0001921,2]
[368583128,1751215846519,-460.0,0.0001921,2]
[368583129,1751215846527,-1443.48,0.0001921,2]
[368583130,1751215846537,-460.0,0.0001921,2]
[368583131,1751215846546,-460.0,0.0001921,2]
[368583132,1751215846555,-460.0,0.0001921,2]
[368583133,1751215846565,-460.0,0.0001921,2]
[368583134,1751215846576,-460.0,0.0001921,2]
[368583135,1751215846585,-460.0,0.0001921,2]
[368583136,1751215846594,-1255.93,0.0001921,2]
[368583137,1751215846603,-460.0,0.0001921,2]
[368583138,1751215846612,-460.0,0.0001921,2]
[368583139,1751215846623,-460.0,0.0001921,2]
[368583140,1751215846632,-691.24,0.0001921,2]
[368583141,1751215846642,-460.0,0.0001921,2]
[368583142,1751215846652,-460.0,0.0001921,2]
[368583143,1751215846661,-580.78,0.0001921,2]
[368583144,1751215846671,-460.0,0.00019211,2]
[368583145,1751215846680,-889.24,0.00019211,2]
[368583146,1751215846689,-460.0,0.00019211,2]
[368583147,1751215846698,-460.0,0.00019211,2]
[368583148,1751215846707,-460.0,0.00019211,2]
[368583149,1751215846718,-460.0,0.00019211,2]
[368583150,1751215846727,-585.05,0.00019211,2]
[368583151,1751215846737,-460.0,0.00019211,2]
[368583152,1751215846746,-460.0,0.00019211,2]
[368583153,1751215846755,-3178.03,0.00019211,2]
[368583154,1751215846767,-460.0,0.00019211,2]
[368583155,1751215846777,-640.96,0.00019211,2]
[368583156,1751215846787,-1063.57,0.00019211,2]
[368583157,1751215846796,-460.0,0.00019211,2]
[368583158,1751215846806,-460.0,0.00019211,2]
[368583159,1751215846816,-703.44,0.00019211,2]
[368583160,1751215846825,-1251.33,0.00019211,2]
[368583161,1751215846834,-460.0,0.00019212,2]
[368583162,1751215846845,-460.0,0.00019212,2]
[368583163,1751215846855,-460.0,0.00019212,2]
[368583164,1751215846865,-460.0,0.00019212,2]
[368583165,1751215846874,-524.45,0.00019212,2]
[368583166,1751215846883,-546.38,0.00019212,2]
[368583167,1751215846893,-460.0,0.00019212,2]
[368583168,1751215846902,-460.0,0.00019212,2]
[368583169,1751215846911,-460.0,0.00019212,2]
[368583170,1751215846921,-460.0,0.00019212,2]
[368583171,1751215846932,-460.0,0.00019212,2]
[368583172,1751215846941,-4014.48,0.00019212,2]
[368583173,1751215846950,-460.0,0.00019212,2]
[368583174,1751215846960,-1201.4,0.00019212,2]
[368583175,1751215846970,-460.0,0.00019212,2]
[368583176,1751215846979,-460.0,0.00019212,2]
[368583177,1751215846988,-460.0,0.00019212,2]
[368583178,1751215846998,-460.0,0.00019213,2]
[368583179,1751215847007,-558.82,0.00019213,2]
[368583180,1751215847016,-460.0,0.00019213,2]
[368583181,1751215847026,-460.0,0.00019213,2]
[368583182,1751215847036,-460.0,0.00019213,2]
[368583183,1751215847045,-915.56,0.00019213,2]
[368583184,1751215847055,-460.0,0.00019213,2]
[368583185,1751215847065,-460.0,0.00019213,2]
[368583186,1751215847075,-944.44,0.00019213,2]
[368583187,1751215847085,-2638.73,0.00019213,2]
[368583188,1751215847094,-460.0,0.00019213,2]